[Event "*** Titled Tuesday Blitz"]
[Site "Chess.com"]
[Date "2020.11.03"]
[Round "7"]
[White "Goryachkina"]
[Black "IceBelka"]
[Result "1/2-1/2"]
[WhiteElo "2588"]
[BlackElo "2198"]
[TimeControl "180+1"]
[EndTime "11:21:35 PST"]
[Termination "Game drawn by repetition"]

1. e4 {[%clk 0:02:59.6]} 1... c6 {[%clk 0:02:55.1]} 2. d4 {[%clk 0:02:58.4]}
2... d5 {[%clk 0:02:55]} 3. exd5 {[%clk 0:02:58.3]} 3... cxd5 {[%clk 0:02:54]}
4. Bd3 {[%clk 0:02:58.5]} 4... Nc6 {[%clk 0:02:48.9]} 5. c3 {[%clk 0:02:58.3]}
5... Qc7 {[%clk 0:02:45.5]} 6. h3 {[%clk 0:02:56.4]} 6... e6 {[%clk 0:02:41.6]}
7. Nf3 {[%clk 0:02:54]} 7... Bd6 {[%clk 0:02:39.4]} 8. O-O {[%clk 0:02:53.9]}
8... Nge7 {[%clk 0:02:38.6]} 9. b3 {[%clk 0:02:45.1]} 9... Ng6 {[%clk
0:02:30.7]} 10. c4 {[%clk 0:02:38.6]} 10... O-O {[%clk 0:02:27.5]} 11. c5 {[%clk
0:02:32.5]} 11... Bf4 {[%clk 0:02:23.8]} 12. Bxg6 {[%clk 0:02:27.8]} 12... hxg6
{[%clk 0:02:17.1]} 13. Nc3 {[%clk 0:02:27]} 13... Bxc1 {[%clk 0:01:37.2]} 14.
Rxc1 {[%clk 0:02:27.9]} 14... Qa5 {[%clk 0:01:34.2]} 15. Qc2 {[%clk 0:02:00.2]}
15... Bd7 {[%clk 0:01:33.1]} 16. a3 {[%clk 0:01:52.2]} 16... Qxa3 {[%clk
0:01:00.3]} 17. Ra1 {[%clk 0:01:49.3]} 17... Qb4 {[%clk 0:00:58.8]} 18. Rfd1
{[%clk 0:00:54.1]} 18... Rfc8 {[%clk 0:00:57.8]} 19. Qb2 {[%clk 0:00:43.8]}
19... Na5 {[%clk 0:00:48.4]} 20. Rdb1 {[%clk 0:00:42.2]} 20... b6 {[%clk
0:00:41.8]} 21. Na2 {[%clk 0:00:39.2]} 21... Qb5 {[%clk 0:00:39.3]} 22. Nc3
{[%clk 0:00:38.1]} 22... Qb4 {[%clk 0:00:37.6]} 23. Ne5 {[%clk 0:00:37.2]} 23...
Be8 {[%clk 0:00:37.3]} 24. Na2 {[%clk 0:00:25.4]} 24... Qb5 {[%clk 0:00:34.5]}
25. b4 {[%clk 0:00:25.2]} 25... Nc4 {[%clk 0:00:28]} 26. Nxc4 {[%clk 0:00:25.5]}
26... Qxc4 {[%clk 0:00:27.8]} 27. Rc1 {[%clk 0:00:24.2]} 27... Qd3 {[%clk
0:00:26.8]} 28. Rd1 {[%clk 0:00:22.4]} 28... Qe4 {[%clk 0:00:25.2]} 29. Nc3
{[%clk 0:00:21.9]} 29... Qf4 {[%clk 0:00:24]} 30. Ne2 {[%clk 0:00:20.1]} 30...
Qg5 {[%clk 0:00:21.9]} 31. Rac1 {[%clk 0:00:18.4]} 31... Bb5 {[%clk 0:00:21.1]}
32. Nc3 {[%clk 0:00:16.1]} 32... Bc4 {[%clk 0:00:21.3]} 33. Na4 {[%clk
0:00:14.2]} 33... b5 {[%clk 0:00:18.9]} 34. Nc3 {[%clk 0:00:13.9]} 34... a5
{[%clk 0:00:18.6]} 35. bxa5 {[%clk 0:00:13.2]} 35... Rxa5 {[%clk 0:00:18.7]} 36.
Ra1 {[%clk 0:00:12.8]} 36... Rca8 {[%clk 0:00:18.9]} 37. Rxa5 {[%clk 0:00:11.5]}
37... Rxa5 {[%clk 0:00:18.3]} 38. Qb4 {[%clk 0:00:10.8]} 38... Ra8 {[%clk
0:00:10.9]} 39. Nxb5 {[%clk 0:00:08.3]} 39... Rb8 {[%clk 0:00:10.3]} 40. c6
{[%clk 0:00:08.3]} 40... Rxb5 {[%clk 0:00:09.1]} 41. Qd6 {[%clk 0:00:06.8]}
41... Rb6 {[%clk 0:00:05.6]} 42. Qc5 {[%clk 0:00:05.5]} 42... Rb8 {[%clk
0:00:04.9]} 43. c7 {[%clk 0:00:04.8]} 43... Rc8 {[%clk 0:00:04.4]} 44. Qd6
{[%clk 0:00:05.1]} 44... Kh7 {[%clk 0:00:03.6]} 45. Qd7 {[%clk 0:00:04.5]} 45...
Ba6 {[%clk 0:00:02.6]} 46. Ra1 {[%clk 0:00:04.7]} 46... Bb7 {[%clk 0:00:02.1]}
47. Rb1 {[%clk 0:00:04.2]} 47... Ba6 {[%clk 0:00:01.4]} 48. Ra1 {[%clk
0:00:04.4]} 48... Bb7 {[%clk 0:00:01.8]} 49. Rb1 {[%clk 0:00:04.9]} 49... Ba6
{[%clk 0:00:02.3]} 50. Ra1 {[%clk 0:00:05.1]} 1/2-1/2

[Event "*** Titled Tuesday Blitz"]
[Site "Chess.com"]
[Date "2020.11.03"]
[Round "7"]
[White "Jungle_Jaguar"]
[Black "Misticpikachu"]
[Result "1-0"]
[WhiteElo "2627"]
[BlackElo "2492"]
[TimeControl "180+1"]
[EndTime "11:21:39 PST"]
[Termination "Jungle_Jaguar won by checkmate"]

1. e4 {[%clk 0:03:00.9]} 1... c5 {[%clk 0:02:59.8]} 2. Nf3 {[%clk 0:03:00.1]}
2... Nc6 {[%clk 0:02:59.3]} 3. Bb5 {[%clk 0:02:58.7]} 3... e6 {[%clk 0:02:59.5]}
4. O-O {[%clk 0:02:58.3]} 4... Nge7 {[%clk 0:02:58.4]} 5. Re1 {[%clk 0:02:58.8]}
5... a6 {[%clk 0:02:56.9]} 6. Bf1 {[%clk 0:02:59.3]} 6... d5 {[%clk 0:02:57.1]}
7. exd5 {[%clk 0:02:58.7]} 7... Nxd5 {[%clk 0:02:56.2]} 8. c3 {[%clk 0:02:57.5]}
8... Be7 {[%clk 0:02:50.4]} 9. d4 {[%clk 0:02:53.7]} 9... cxd4 {[%clk
0:02:41.2]} 10. Nxd4 {[%clk 0:02:52.5]} 10... Nxd4 {[%clk 0:02:41.3]} 11. Qxd4
{[%clk 0:02:52.2]} 11... Nf6 {[%clk 0:02:41.3]} 12. Qh4 {[%clk 0:02:40.1]} 12...
O-O {[%clk 0:02:37.7]} 13. Nd2 {[%clk 0:02:39.2]} 13... b5 {[%clk 0:02:33.3]}
14. Nf3 {[%clk 0:02:33.4]} 14... Bb7 {[%clk 0:02:30.7]} 15. Bg5 {[%clk
0:02:30.1]} 15... h6 {[%clk 0:02:26.4]} 16. Bxh6 {[%clk 0:02:01.3]} 16... gxh6
{[%clk 0:02:21.8]} 17. Qxh6 {[%clk 0:02:02.2]} 17... Bxf3 {[%clk 0:01:57]} 18.
gxf3 {[%clk 0:01:59.3]} 18... Qd5 {[%clk 0:01:57.4]} 19. Kh1 {[%clk 0:01:32.5]}
19... Qh5 {[%clk 0:01:29]} 20. Qf4 {[%clk 0:01:21.6]} 20... Nd5 {[%clk
0:01:18.7]} 21. Qe4 {[%clk 0:01:20.2]} 21... Bd6 {[%clk 0:01:07.1]} 22. h3
{[%clk 0:01:15]} 22... Qh7 {[%clk 0:00:37.7]} 23. Qd4 {[%clk 0:01:05.9]} 23...
Qg7 {[%clk 0:00:23.2]} 24. Qd2 {[%clk 0:00:56.9]} 24... Bf4 {[%clk 0:00:20.5]}
25. Qc2 {[%clk 0:00:54.9]} 25... Qh7 {[%clk 0:00:18.6]} 26. Re4 {[%clk
0:00:52.8]} 26... Nf6 {[%clk 0:00:13]} 27. Rae1 {[%clk 0:00:49.4]} 27... Nxe4
{[%clk 0:00:12.6]} 28. Rxe4 {[%clk 0:00:50.3]} 28... e5 {[%clk 0:00:11.7]} 29.
Kg2 {[%clk 0:00:37.2]} 29... Rad8 {[%clk 0:00:11.6]} 30. Bd3 {[%clk 0:00:36.9]}
30... Qg7+ {[%clk 0:00:11.3]} 31. Kf1 {[%clk 0:00:37.4]} 31... Qh6 {[%clk
0:00:09.6]} 32. Re1 {[%clk 0:00:35.5]} 32... Qxh3+ {[%clk 0:00:09]} 33. Ke2
{[%clk 0:00:35.9]} 33... f5 {[%clk 0:00:09.3]} 34. Qb3+ {[%clk 0:00:31]} 34...
Kg7 {[%clk 0:00:05.4]} 35. Rg1+ {[%clk 0:00:28.8]} 35... Kf6 {[%clk 0:00:05.7]}
36. Qa3 {[%clk 0:00:27.4]} 36... Rf7 {[%clk 0:00:01.5]} 37. Qxa6+ {[%clk
0:00:27.2]} 37... Ke7 {[%clk 0:00:02]} 38. Qb7+ {[%clk 0:00:27.5]} 38... Rd7
{[%clk 0:00:02.4]} 39. Qxb5 {[%clk 0:00:27.1]} 39... e4 {[%clk 0:00:02]} 40.
fxe4 {[%clk 0:00:25.9]} 40... fxe4 {[%clk 0:00:02.9]} 41. Bxe4 {[%clk
0:00:26.5]} 41... Rd2+ {[%clk 0:00:02.6]} 42. Ke1 {[%clk 0:00:26]} 42... Qe6
{[%clk 0:00:03.1]} 43. Qb7+ {[%clk 0:00:25.2]} 43... Rd7 {[%clk 0:00:03.5]} 44.
Qb4+ {[%clk 0:00:24.4]} 44... Bd6 {[%clk 0:00:04]} 45. Qa4 {[%clk 0:00:21.8]}
45... Rf4 {[%clk 0:00:04]} 46. f3 {[%clk 0:00:20.9]} 46... Rf7 {[%clk
0:00:03.7]} 47. Rg6 {[%clk 0:00:19.6]} 47... Qe5 {[%clk 0:00:03.4]} 48. Qa8
{[%clk 0:00:10]} 48... Rxf3 {[%clk 0:00:03]} 49. Rg8 {[%clk 0:00:09.2]} 49...
Rf7 {[%clk 0:00:02.2]} 50. Qe8+ {[%clk 0:00:08.3]} 50... Kf6 {[%clk 0:00:02.7]}
51. Rg6# {[%clk 0:00:09.2]} 1-0

[Event "*** Titled Tuesday Blitz"]
[Site "Chess.com"]
[Date "2020.11.03"]
[Round "7"]
[White "Rap_woyska"]
[Black "Karacsonyi_Gellert"]
[Result "0-1"]
[WhiteElo "2520"]
[BlackElo "2669"]
[TimeControl "180+1"]
[EndTime "11:21:43 PST"]
[Termination "Karacsonyi_Gellert won on time"]

1. c4 {[%clk 0:03:00.9]} 1... Nf6 {[%clk 0:02:59.7]} 2. Nf3 {[%clk 0:03:01.3]}
2... e6 {[%clk 0:03:00.1]} 3. e3 {[%clk 0:03:01.2]} 3... d5 {[%clk 0:03:01]} 4.
b3 {[%clk 0:03:02.1]} 4... Be7 {[%clk 0:03:00.8]} 5. Bb2 {[%clk 0:03:02.6]} 5...
O-O {[%clk 0:03:01.5]} 6. Nc3 {[%clk 0:03:03.1]} 6... c5 {[%clk 0:03:01.8]} 7.
cxd5 {[%clk 0:03:02.4]} 7... Nxd5 {[%clk 0:02:59.9]} 8. Qc2 {[%clk 0:03:02.3]}
8... Nc6 {[%clk 0:02:57.9]} 9. a3 {[%clk 0:03:01.8]} 9... b6 {[%clk 0:02:57.9]}
10. h4 {[%clk 0:03:01.5]} 10... h6 {[%clk 0:02:53.1]} 11. Bb5 {[%clk 0:02:58.7]}
11... Bb7 {[%clk 0:02:52.2]} 12. Ne4 {[%clk 0:02:47.4]} 12... f5 {[%clk
0:02:32.1]} 13. Ng3 {[%clk 0:02:38.7]} 13... Bf6 {[%clk 0:02:29.9]} 14. Nh5
{[%clk 0:02:37.2]} 14... Bxb2 {[%clk 0:02:20.8]} 15. Qxb2 {[%clk 0:02:38.1]}
15... Qe7 {[%clk 0:02:20.9]} 16. Ne5 {[%clk 0:02:22.7]} 16... Nxe5 {[%clk
0:02:14.4]} 17. Qxe5 {[%clk 0:02:23.6]} 17... Nf6 {[%clk 0:02:14.8]} 18. Nxf6+
{[%clk 0:02:18.3]} 18... Qxf6 {[%clk 0:02:10.7]} 19. Qxf6 {[%clk 0:02:18.3]}
19... Rxf6 {[%clk 0:02:11.6]} 20. f3 {[%clk 0:02:18.3]} 20... e5 {[%clk
0:02:11.9]} 21. Rc1 {[%clk 0:02:14.9]} 21... Rd6 {[%clk 0:02:08.1]} 22. Ke2
{[%clk 0:02:11.4]} 22... Rad8 {[%clk 0:02:07.4]} 23. Rhd1 {[%clk 0:02:11.6]}
23... Kf8 {[%clk 0:02:05.9]} 24. b4 {[%clk 0:02:10.1]} 24... a6 {[%clk
0:01:43.9]} 25. Ba4 {[%clk 0:02:09.5]} 25... Rc8 {[%clk 0:01:36.5]} 26. bxc5
{[%clk 0:02:07.9]} 26... bxc5 {[%clk 0:01:28.7]} 27. Rb1 {[%clk 0:02:07.8]}
27... Bc6 {[%clk 0:01:28.9]} 28. Bc2 {[%clk 0:01:51.2]} 28... Bb5+ {[%clk
0:01:27]} 29. Ke1 {[%clk 0:01:51.8]} 29... Bd3 {[%clk 0:01:24.1]} 30. Rdc1
{[%clk 0:01:52.2]} 30... Ke7 {[%clk 0:01:16.2]} 31. Rb3 {[%clk 0:01:49.3]} 31...
Bxc2 {[%clk 0:01:08.5]} 32. Rxc2 {[%clk 0:01:50.2]} 32... g5 {[%clk 0:01:00.9]}
33. h5 {[%clk 0:01:38.5]} 33... f4 {[%clk 0:00:58.2]} 34. Ke2 {[%clk 0:01:24.5]}
34... Kd7 {[%clk 0:00:50.3]} 35. Rb7+ {[%clk 0:01:22.9]} 35... Kc6 {[%clk
0:00:49.2]} 36. Rb3 {[%clk 0:01:10.4]} 36... Rc7 {[%clk 0:00:49.4]} 37. Rc4
{[%clk 0:01:07.6]} 37... Kd5 {[%clk 0:00:46.6]} 38. Rbc3 {[%clk 0:00:52]} 38...
Rb6 {[%clk 0:00:46.1]} 39. Rc2 {[%clk 0:00:25.5]} 39... Rb5 {[%clk 0:00:45.8]}
40. a4 {[%clk 0:00:24.2]} 40... Rb3 {[%clk 0:00:44.4]} 41. Kf2 {[%clk
0:00:20.4]} 41... fxe3+ {[%clk 0:00:41.7]} 42. dxe3 {[%clk 0:00:21.3]} 42... a5
{[%clk 0:00:38.7]} 43. Ke2 {[%clk 0:00:21.3]} 43... Rb4 {[%clk 0:00:37.3]} 44.
R4c3 {[%clk 0:00:17.2]} 44... Rxa4 {[%clk 0:00:36.9]} 45. Rd2+ {[%clk
0:00:16.7]} 45... Kc6 {[%clk 0:00:36.9]} 46. Rdc2 {[%clk 0:00:17]} 46... Kb5
{[%clk 0:00:35.8]} 47. Rd2 {[%clk 0:00:16.9]} 47... Rc6 {[%clk 0:00:33.8]} 48.
Rd5 {[%clk 0:00:16.4]} 48... Ra2+ {[%clk 0:00:32]} 49. Kf1 {[%clk 0:00:16.7]}
49... Kb4 {[%clk 0:00:29.1]} 50. Rc1 {[%clk 0:00:15.7]} 50... c4 {[%clk
0:00:29.4]} 51. Rxe5 {[%clk 0:00:14.3]} 51... c3 {[%clk 0:00:29.6]} 52. Re8
{[%clk 0:00:11.9]} 52... c2 {[%clk 0:00:26.5]} 53. Ke2 {[%clk 0:00:11.2]} 53...
Kc3 {[%clk 0:00:24.3]} 54. Rb8 {[%clk 0:00:11.3]} 54... Rb2 {[%clk 0:00:24.6]}
55. Rd8 {[%clk 0:00:03.9]} 55... Rb1 {[%clk 0:00:24.7]} 56. Rd3+ {[%clk
0:00:04.1]} 56... Kb2 {[%clk 0:00:24.8]} 0-1

[Event "*** Titled Tuesday Blitz"]
[Site "Chess.com"]
[Date "2020.11.03"]
[Round "7"]
[White "Firouzja2003"]
[Black "SGchess01"]
[Result "1-0"]
[WhiteElo "3064"]
[BlackElo "2845"]
[TimeControl "180+1"]
[EndTime "11:21:50 PST"]
[Termination "Firouzja2003 won by resignation"]

1. e3 {[%clk 0:03:00.9]} 1... b6 {[%clk 0:02:58.2]} 2. c4 {[%clk 0:02:58.4]}
2... Bb7 {[%clk 0:02:58.6]} 3. Nc3 {[%clk 0:02:57.4]} 3... e6 {[%clk 0:02:57.7]}
4. Nf3 {[%clk 0:02:57.3]} 4... Nf6 {[%clk 0:02:57]} 5. b3 {[%clk 0:02:56.1]}
5... g6 {[%clk 0:02:55.4]} 6. Bb2 {[%clk 0:02:56.1]} 6... Bg7 {[%clk 0:02:55.9]}
7. Be2 {[%clk 0:02:56.3]} 7... O-O {[%clk 0:02:56]} 8. O-O {[%clk 0:02:56.7]}
8... d6 {[%clk 0:02:56.4]} 9. Qc2 {[%clk 0:02:55.1]} 9... Nbd7 {[%clk
0:02:52.4]} 10. Rad1 {[%clk 0:02:54.6]} 10... Qe7 {[%clk 0:02:51.5]} 11. d4
{[%clk 0:02:52.5]} 11... c5 {[%clk 0:02:45.8]} 12. Rfe1 {[%clk 0:02:51.6]} 12...
a6 {[%clk 0:02:44.6]} 13. a4 {[%clk 0:02:41.3]} 13... Rac8 {[%clk 0:02:38.9]}
14. d5 {[%clk 0:02:40.8]} 14... e5 {[%clk 0:02:26.8]} 15. a5 {[%clk 0:02:35.2]}
15... bxa5 {[%clk 0:02:25.4]} 16. Ra1 {[%clk 0:02:33.5]} 16... h6 {[%clk
0:02:21.9]} 17. Rxa5 {[%clk 0:02:32.6]} 17... Nh7 {[%clk 0:02:22.1]} 18. Nd2
{[%clk 0:02:24.5]} 18... f5 {[%clk 0:02:22.1]} 19. Bf1 {[%clk 0:02:24.6]} 19...
h5 {[%clk 0:02:19.9]} 20. Raa1 {[%clk 0:02:22.9]} 20... h4 {[%clk 0:02:18.3]}
21. f4 {[%clk 0:02:22.4]} 21... e4 {[%clk 0:02:14.7]} 22. Ne2 {[%clk 0:02:19.3]}
22... Bxb2 {[%clk 0:01:48.4]} 23. Qxb2 {[%clk 0:02:17.5]} 23... Qg7 {[%clk
0:01:39.2]} 24. Qxg7+ {[%clk 0:02:17.1]} 24... Kxg7 {[%clk 0:01:40.1]} 25. Reb1
{[%clk 0:02:15.5]} 25... Ra8 {[%clk 0:01:38.6]} 26. b4 {[%clk 0:02:11]} 26...
Rfb8 {[%clk 0:01:31.2]} 27. Nb3 {[%clk 0:02:04.1]} 27... cxb4 {[%clk 0:01:28.3]}
28. Ra5 {[%clk 0:02:02.5]} 28... Rc8 {[%clk 0:01:21.5]} 29. Ned4 {[%clk
0:02:02.1]} 29... Kf6 {[%clk 0:00:53.6]} 30. Ra4 {[%clk 0:01:49.2]} 30... Rab8
{[%clk 0:00:49.1]} 31. Rxb4 {[%clk 0:01:15.6]} 31... Ba8 {[%clk 0:00:48.9]} 32.
Rxb8 {[%clk 0:01:15.5]} 32... Rxb8 {[%clk 0:00:49.4]} 33. Ra1 {[%clk 0:01:16.1]}
33... Rb6 {[%clk 0:00:49.2]} 34. Kf2 {[%clk 0:01:13.3]} 34... Ke7 {[%clk
0:00:47.1]} 35. Ke1 {[%clk 0:01:12.9]} 35... Nhf6 {[%clk 0:00:47.6]} 36. Be2
{[%clk 0:01:10.5]} 36... Ne8 {[%clk 0:00:31.7]} 37. Kd2 {[%clk 0:01:08.2]} 37...
Nc7 {[%clk 0:00:31]} 38. Kc3 {[%clk 0:01:08.3]} 38... Rb8 {[%clk 0:00:28.4]} 39.
Ra5 {[%clk 0:01:03.1]} 39... Rg8 {[%clk 0:00:26.2]} 40. Bf1 {[%clk 0:00:58.1]}
40... Rc8 {[%clk 0:00:25.9]} 41. Kd2 {[%clk 0:00:56.5]} 41... Rg8 {[%clk
0:00:25.7]} 42. Nc2 {[%clk 0:00:55]} 42... g5 {[%clk 0:00:24.6]} 43. Ncd4 {[%clk
0:00:43.9]} 43... Kf6 {[%clk 0:00:23.2]} 44. Ne6 {[%clk 0:00:44.5]} 44... Nxe6
{[%clk 0:00:18.4]} 45. dxe6 {[%clk 0:00:45.4]} 45... Kxe6 {[%clk 0:00:18]} 46.
Nd4+ {[%clk 0:00:45.5]} 46... Ke7 {[%clk 0:00:15.2]} 47. Nxf5+ {[%clk
0:00:45.6]} 47... Kf6 {[%clk 0:00:15.1]} 48. Nxd6 {[%clk 0:00:43.7]} 48... gxf4
{[%clk 0:00:15.5]} 49. exf4 {[%clk 0:00:44.6]} 49... e3+ {[%clk 0:00:12.9]} 50.
Kxe3 {[%clk 0:00:44.4]} 50... Bxg2 {[%clk 0:00:13.8]} 51. Be2 {[%clk 0:00:39.9]}
51... Nb8 {[%clk 0:00:10.2]} 52. Rh5 {[%clk 0:00:36.9]} 52... h3 {[%clk
0:00:10]} 53. Rh6+ {[%clk 0:00:36.3]} 53... Ke7 {[%clk 0:00:10.4]} 54. Nf5+
{[%clk 0:00:36.1]} 54... Kd7 {[%clk 0:00:11.3]} 55. Rh7+ {[%clk 0:00:36.3]}
55... Kc6 {[%clk 0:00:11.2]} 56. Nd4+ {[%clk 0:00:36.1]} 56... Kc5 {[%clk
0:00:11.3]} 57. Rc7+ {[%clk 0:00:36.4]} 57... Kb4 {[%clk 0:00:11.6]} 58. f5
{[%clk 0:00:34.3]} 58... Re8+ {[%clk 0:00:11.2]} 59. Kd2 {[%clk 0:00:34.4]}
59... a5 {[%clk 0:00:11.2]} 60. f6 {[%clk 0:00:34.4]} 60... Rf8 {[%clk
0:00:10.1]} 61. f7 {[%clk 0:00:33.2]} 61... Na6 {[%clk 0:00:11]} 62. Re7 {[%clk
0:00:31.4]} 62... Nc5 {[%clk 0:00:11.2]} 63. Bh5 {[%clk 0:00:31.6]} 63... a4
{[%clk 0:00:10.4]} 64. Re8 {[%clk 0:00:30.7]} 64... Nd7 {[%clk 0:00:07.5]} 65.
Ne6 {[%clk 0:00:29.9]} 65... a3 {[%clk 0:00:07.6]} 66. Nxf8 {[%clk 0:00:26.4]}
66... a2 {[%clk 0:00:06.4]} 67. Nxd7 {[%clk 0:00:26.8]} 1-0

[Event "*** Titled Tuesday Blitz"]
[Site "Chess.com"]
[Date "2020.11.03"]
[Round "7"]
[White "Ajedrez_con_German"]
[Black "DraG0s3L"]
[Result "0-1"]
[WhiteElo "2470"]
[BlackElo "2596"]
[TimeControl "180+1"]
[EndTime "11:21:54 PST"]
[Termination "DraG0s3L won on time"]

1. d4 {[%clk 0:03:00.9]} 1... d5 {[%clk 0:02:59.9]} 2. c4 {[%clk 0:02:53.7]}
2... dxc4 {[%clk 0:02:59.9]} 3. Nf3 {[%clk 0:02:50.2]} 3... Nf6 {[%clk
0:02:59.9]} 4. e3 {[%clk 0:02:50.3]} 4... a6 {[%clk 0:02:58.2]} 5. Bxc4 {[%clk
0:02:49.4]} 5... b5 {[%clk 0:02:58.9]} 6. Bd3 {[%clk 0:02:47.7]} 6... Bb7 {[%clk
0:02:58.9]} 7. O-O {[%clk 0:02:47.8]} 7... e6 {[%clk 0:02:59.2]} 8. b3 {[%clk
0:02:48]} 8... Be7 {[%clk 0:02:58.9]} 9. Bb2 {[%clk 0:02:48]} 9... O-O {[%clk
0:02:58.8]} 10. Nc3 {[%clk 0:02:45.5]} 10... Nbd7 {[%clk 0:02:58.4]} 11. Rc1
{[%clk 0:02:44.7]} 11... c5 {[%clk 0:02:58.6]} 12. Qe2 {[%clk 0:02:27.6]} 12...
Qb6 {[%clk 0:02:56.3]} 13. dxc5 {[%clk 0:02:15.6]} 13... Nxc5 {[%clk 0:02:57.2]}
14. Bb1 {[%clk 0:02:15.6]} 14... Rac8 {[%clk 0:02:54.5]} 15. Rfd1 {[%clk
0:02:09.5]} 15... b4 {[%clk 0:02:47.8]} 16. Na4 {[%clk 0:02:07.5]} 16... Nxa4
{[%clk 0:02:48]} 17. bxa4 {[%clk 0:02:08.4]} 17... Bd5 {[%clk 0:02:39]} 18. e4
{[%clk 0:01:50]} 18... Bb7 {[%clk 0:02:38.7]} 19. Ne5 {[%clk 0:01:46.2]} 19...
Rfd8 {[%clk 0:02:35.5]} 20. Nc4 {[%clk 0:01:38.1]} 20... Qa7 {[%clk 0:02:26.7]}
21. Na5 {[%clk 0:01:29.1]} 21... Ba8 {[%clk 0:02:20.4]} 22. Rxd8+ {[%clk
0:01:28.5]} 22... Rxd8 {[%clk 0:02:19.8]} 23. Nc6 {[%clk 0:01:24.8]} 23... Bxc6
{[%clk 0:02:19.5]} 24. Rxc6 {[%clk 0:01:25.7]} 24... Qd7 {[%clk 0:02:12.9]} 25.
Rc1 {[%clk 0:01:07.8]} 25... Qxa4 {[%clk 0:02:12.8]} 26. h3 {[%clk 0:01:03]}
26... a5 {[%clk 0:01:58.6]} 27. g3 {[%clk 0:00:53.4]} 27... Qd7 {[%clk 0:01:58]}
28. Bc2 {[%clk 0:00:39.6]} 28... Qd2 {[%clk 0:01:49.4]} 29. Kf1 {[%clk
0:00:37.9]} 29... h5 {[%clk 0:01:25.8]} 30. Qxd2 {[%clk 0:00:36.8]} 30... Rxd2
{[%clk 0:01:25.4]} 31. Ke1 {[%clk 0:00:37.7]} 31... Rd8 {[%clk 0:01:23.7]} 32.
Rd1 {[%clk 0:00:24.9]} 32... Rc8 {[%clk 0:01:19.7]} 33. Rc1 {[%clk 0:00:19.7]}
33... h4 {[%clk 0:01:15.3]} 34. g4 {[%clk 0:00:16]} 34... Nd7 {[%clk 0:01:13.5]}
35. Bb3 {[%clk 0:00:14.2]} 35... Rxc1+ {[%clk 0:01:11.3]} 36. Bxc1 {[%clk
0:00:14.5]} 36... Nc5 {[%clk 0:01:11.9]} 37. Be3 {[%clk 0:00:14]} 37... Nxe4
{[%clk 0:01:11.7]} 38. Bb6 {[%clk 0:00:11]} 38... Ng5 {[%clk 0:01:04.6]} 39.
Bxa5 {[%clk 0:00:10.3]} 39... Nxh3 {[%clk 0:01:04.7]} 40. Kf1 {[%clk 0:00:07.6]}
40... Bc5 {[%clk 0:01:04.6]} 41. f3 {[%clk 0:00:06.8]} 41... Nf4 {[%clk
0:01:05]} 42. Bc7 {[%clk 0:00:02.2]} 42... Nd3 {[%clk 0:00:52.8]} 43. Kg2 {[%clk
0:00:03.1]} 43... Ne1+ {[%clk 0:00:50.7]} 44. Kh3 {[%clk 0:00:03.5]} 44... Nxf3
{[%clk 0:00:50.9]} 45. Bd1 {[%clk 0:00:03.9]} 45... Ng5+ {[%clk 0:00:41.9]} 46.
Kxh4 {[%clk 0:00:04.4]} 46... f6 {[%clk 0:00:40.6]} 47. Bb3 {[%clk 0:00:04]}
47... Bf2+ {[%clk 0:00:37.3]} 48. Kh5 {[%clk 0:00:03.8]} 48... Kf7 {[%clk
0:00:27.9]} 49. Bf4 {[%clk 0:00:03.9]} 49... Ne4 {[%clk 0:00:20.7]} 50. g5
{[%clk 0:00:04.3]} 50... fxg5 {[%clk 0:00:18.3]} 51. Bxg5 {[%clk 0:00:04.7]}
51... Nxg5 {[%clk 0:00:17.9]} 52. Kxg5 {[%clk 0:00:05.6]} 52... Bd4 {[%clk
0:00:17.6]} 53. Kg4 {[%clk 0:00:05.6]} 53... Kf6 {[%clk 0:00:16.9]} 54. Bc4
{[%clk 0:00:04.9]} 54... Ke5 {[%clk 0:00:14.7]} 55. Bd3 {[%clk 0:00:04.5]} 55...
Kd5 {[%clk 0:00:15]} 56. Kf4 {[%clk 0:00:04.5]} 56... e5+ {[%clk 0:00:15.4]} 57.
Kf5 {[%clk 0:00:04.8]} 57... g5 {[%clk 0:00:13.5]} 58. Bc2 {[%clk 0:00:03.2]}
58... Be3 {[%clk 0:00:11.9]} 59. Be4+ {[%clk 0:00:01.6]} 59... Kd4 {[%clk
0:00:12.3]} 60. Bc2 {[%clk 0:00:01.5]} 60... Bd2 {[%clk 0:00:11.9]} 0-1